Cogmind - Beta 13 X1 @@@ ROGUE MODE // 2023.07.15 @ 05:53:59 Player: deadnoob Result: Self-destructed Performance ------------- Evolutions (3) 1500 Regions Visited (9) 1800 Robots Destroyed (180) 900 Value Destroyed (4266) 4266 Prototype IDs (35) 700 Alien Tech Used (0) 0 Bonus (-1658) -1658 TOTAL SCORE: 7508 Bonus ------- High Alert Combat Kills 85 Follower Combat Kills 581 Friendly Fire -2324 Cogmind --------- Core Integrity 599/700 Matter 22/300 Energy 287/300 System Corruption 0% Temperature Hot (234) Movement Treading (240) Ox1 Location -7/Lower Caves Parts ------- > --- POWER (1) -------- Enhanced Nuclear Core > --- PROPULSION (4) --- Light Treads Light Treads Medium Treads Medium Treads > --- UTILITY (6) ------ Huge Storage Unit Advanced Targeting Computer Gun Armor Centrium Light Armor Plating Medium Reactive Plating Shield Generator > --- WEAPON (2+1) ----- Enhanced Autogun (+) Enhanced Autogun Enhanced Autogun > --- INVENTORY (25) --- Medium Treads Medium Treads Experimental Cooling System Experimental Cooling System Coolant Injector Improved Salvage Targeting Computer Hardened Medium Armor Plating Hardened Medium Armor Plating Layered Light Armor Plating Layered Light Armor Plating Layered Light Armor Plating Medium Reactive Plating Shield Generator 01-MTF's Autohacker System Restoration Module Long-range Tractor Beam EM Pulse Cannon Enhanced Autogun Enhanced Autogun Precision Grenade Launcher Scatter Rocket Array Multitool Heavy Mace Peak State ------------ > --- POWER ------------ Enhanced Nuclear Core > --- PROPULSION ------- Light Treads Medium Treads Medium Treads Medium Treads > --- UTILITY ---------- Huge Storage Unit Advanced Targeting Computer Gun Armor Centrium Light Armor Plating Medium Reactive Plating Shield Generator > --- WEAPON ----------- Enhanced Autogun Enhanced Autogun Precision Grenade Launcher > --- INVENTORY -------- Light Treads Medium Treads Medium Treads Experimental Cooling System Experimental Cooling System Coolant Injector Improved Signal Interpreter Medium Armor Plating Layered Light Armor Plating Layered Light Armor Plating Layered Light Armor Plating Medium Reactive Plating Medium Reactive Plating Shield Generator Shield Generator 01-MTF's Autohacker Long-range Tractor Beam EM Pulse Cannon Enhanced Autogun Enhanced Autogun Enhanced Autogun Mini Grenade Launcher Scatter Rocket Array Multitool Spear [Rating: 68] Favorites ----------- Power Cooled Ion Engine Engine Cooled Ion Engine Power Core Enhanced Nuclear Core Reactor Reinforced Antimatter Reactor Propulsion Light Treads Treads Light Treads Leg Aluminum Leg Wheel Wheel Hover Unit Cooled Aerolev Unit Flight Unit Improved Flight Unit Utility Huge Storage Unit Device Shield Generator Storage Huge Storage Unit Processor Advanced Targeting Computer Hackware Hacking Suite Protection Light Armor Plating Weapon Enhanced Autogun Energy Gun Phase Gun Energy Cannon Subdweller Beam Cannon Ballistic Gun Enhanced Autogun Ballistic Cannon Improved Light Cannon Launcher Precision Grenade Launcher Special Weapon Multitool Slashing Weapon Makeshift Axe Piercing Weapon Spear Special Melee Weapon Datajack Build | -11 -10 -10 -10 -9 -9 -8 -8 -7 -7 ------- Run | Jun Mat Min Sub Mat Min Mat Sto Fac Low Slots Evolved 6 | . . . . 2 . 2 . 2 . Power . | . . . . . . . . . . Propulsion 2 | . . . . . . 2 . . . Utility 4 | . . . . 2 . . . 2 . Weapon . | . . . . . . . . . . Parts Attached 171 | . 8 3 21 31 . 30 32 41 5 Power 12 | . . . 2 4 . 2 1 3 . Engine 9 | . . . 2 4 . 2 . 1 . Core 2 | . . . . . . . . 2 . Reactor 1 | . . . . . . . 1 . . Propulsion 41 | . 2 . 2 6 . 13 6 12 . Treads 38 | . 2 . 2 5 . 12 5 12 . Leg . | . . . . . . . . . . Wheel 1 | . . . . . . 1 . . . Hover 1 | . . . . . . . 1 . . Flight 1 | . . . . 1 . . . . . Utility 62 | . 5 2 9 9 . 7 6 21 3 Device 26 | . 2 1 4 4 . 1 5 8 1 Storage 6 | . 2 . 2 2 . . . . . Processor 4 | . . . . . . 1 . 3 . Hackware 1 | . . . . . . . . 1 . Protection 25 | . 1 1 3 3 . 5 1 9 2 Artifact . | . . . . . . . . . . Weapon 56 | . 1 1 8 12 . 8 19 5 2 Energy Gun 4 | . . . . . . 1 3 . . Energy Cannon 3 | . . . 1 . . . 2 . . Ballistic Gun 20 | . 1 1 6 1 . . 7 3 1 Ballistic Cannon 13 | . . . 1 8 . 3 1 . . Launcher 5 | . . . . 2 . . 1 1 1 Special Weapon 4 | . . . . . . 1 3 . . Impact Weapon . | . . . . . . . . . . Slashing Weapon 2 | . . . . 1 . 1 . . . Piercing Weapon 3 | . . . . . . 1 1 1 . Special Melee Weapon 2 | . . . . . . 1 1 . . Unidentified Prototypes 10 | . . 1 . 2 . 1 4 2 . Parts Lost 25 | . 1 1 7 1 . 13 . 1 1 Power 3 | . . . 2 . . 1 . . . Propulsion 8 | . . . 2 . . 6 . . . Utility 8 | . . . 1 1 . 4 . 1 1 Weapon 6 | . 1 1 2 . . 2 . . . Highest Loss Streak 7 | . 1 1 1 1 . 7 . 1 1 To Critical Strikes . | . . . . . . . . . . Average Slot Usage (%) 93 | . 96 99 86 91 100 98 99 99 98 Engine 8 | . 14 14 10 11 11 8 3 . . Treads 25 | . 17 28 26 21 22 33 31 27 28 Device 7 | . 5 . 5 11 11 5 10 6 8 Storage 8 | . 14 14 7 11 11 9 7 6 7 Processor 1 | . . . . . . 5 . 7 7 Protection 13 | . 5 14 7 13 22 16 12 19 18 Energy Cannon 1 | . . . 5 . . . . . . Ballistic Gun 12 | . 28 27 16 . . . 20 21 17 Ballistic Cannon 9 | . . . 6 20 22 13 . . . Naked Turns . | . . . . . . . . . . Heaviest Build 140 | 14 31 31 96 116 103 105 126 140 129 Greatest Support 104 | 20 40 40 40 40 40 88 84 104 96 Greatest Overweight (x) 10 | . 1 . 8 3 2 10 1 1 1 Average Overweight (x) 1 | . . . . 1 2 2 1 1 1 Largest Inventory Capacity 25 | 8 25 15 25 25 25 25 25 25 25 Average Capacity 19 | 8 13 15 11 24 25 25 25 25 25 Most Carried 25 | 5 13 15 24 25 25 25 25 25 24 Average Carried 18 | 3 9 14 9 23 25 24 24 24 23 Final Capacity 25 | 8 15 15 25 25 25 25 25 25 25 Final Carried 25 | 2 13 15 24 25 25 25 25 24 23 Class Distribution -------------------- 42% | Mutant 23% | Scavenger-Mutant 10% | Scavenger-Tank 9% | Tank 6% | Derelict-Mutant 5% | Subdweller-Mutant Dominant Class ---------------- Mutant | -10/Materials Mutant | -10/Mines Mutant | -10/Subcaves Mutant | -9/Materials Scavenger-Mutant | -9/Mines Scavenger-Mutant | -8/Materials Scavenger-Tank | -8/Storage Tank | -7/Factory Tank | -7/Lower Caves Resources | -11 -10 -10 -10 -9 -9 -8 -8 -7 -7 ----------- Run | Jun Mat Min Sub Mat Min Mat Sto Fac Low Matter Collected 6482 | 200 325 59 865 1425 32 634 1331 1611 . Remotely 421 | . . . . . . . 212 209 . Salvage Created 6403 | . 433 104 369 1596 17 839 1036 2009 . Parts 376 | . 27 8 25 116 4 38 70 88 . Haulers Intercepted 19 | . 1 . . 6 . 3 5 4 . Recyclers Shooed 8 | . 1 . . 2 . 1 . 4 . Parts Field Recycled . | . . . . . . . . . . Retrieved Matter . | . . . . . . . . . . Parts Self-Destructed 22 | . . . 22 . . . . . . Prevented . | . . . . . . . . . . Kills | -11 -10 -10 -10 -9 -9 -8 -8 -7 -7 ------- Run | Jun Mat Min Sub Mat Min Mat Sto Fac Low Combat Hostiles Destroyed 112 | . 14 4 15 36 2 14 5 22 . Melee 5 | . . . . 3 . 1 1 . . Guns 58 | . 14 4 10 1 . 3 4 22 . Cannons 46 | . . . 5 29 2 10 . . . AOE 3 | . . . . 3 . . . . . Classes Destroyed 17 | . 3 . 2 9 . . . 3 . Worker 12 | . . . . 5 1 1 3 2 . Builder 6 | . . . . 2 . 1 1 2 . Tunneler 2 | . . . . 1 . . . 1 . Hauler 19 | . 1 . . 6 . 3 5 4 . Recycler 17 | . . . . 4 . 2 4 7 . Mechanic 2 | . . . . 1 . . 1 . . Operator 3 | . . . . 1 . . 2 . . Turret 1 | . . . 1 . . . . . . Watcher 5 | . . . . 4 . . . 1 . Swarmer 30 | . 6 2 4 10 2 3 . 3 . Grunt 48 | . 8 2 1 16 . 9 2 10 . Brawler 1 | . . . . 1 . . . . . Duelist 1 | . . . . . . . . 1 . Sentry 16 | . . . . 9 . 1 3 3 . Hunter 3 | . . . . . . . . 3 . Programmer 2 | . . . . . . . . 2 . Subdweller 10 | . . . 10 . . . . . . Best Kill Streak 5 | . 3 2 4 5 2 3 4 4 . Combat Bots Only 4 | . 3 2 4 3 2 3 2 4 . Max Kills in Single Turn 3 | . 1 1 1 3 1 1 1 1 . Gunslinging . | . . . . . . . . . . Exploded 3 | . . . . 3 . . . . . Melee 1 | . . . . 1 . 1 1 . . Uniques/NPCs Destroyed 2 | . . . . . . 1 1 . . 7R-MNS (-8/Materials) 01-MTF (-8/Storage) Combat | -11 -10 -10 -10 -9 -9 -8 -8 -7 -7 -------- Run | Jun Mat Min Sub Mat Min Mat Sto Fac Low Damage Taken 6982 | . 498 111 1161 973 21 2442 235 1311 230 Core 722 | . 90 17 116 60 7 321 10 61 40 Absorbed by Shields 721 | . . . . 278 . . 16 343 84 Ignored by Resistances 372 | . . . . . . 54 30 229 59 Regen/Repaired (Parts) 234 | . . . . 34 . . . 200 . Core Remaining (%) 58 | 100 . . 10 . 83 . 39 . . Volleys Fired 485 | . 45 13 60 112 4 58 74 111 8 Largest 4 | . 2 2 2 2 2 2 4 3 3 Hottest 163 | . 40 40 68 78 78 123 163 75 75 Shots Fired 1080 | . 90 26 104 220 8 112 162 334 24 Gun 681 | . 90 26 63 6 . 16 122 334 24 Cannon 354 | . . . 41 210 8 94 1 . . Launcher 4 | . . . . 4 . . . . . Special 41 | . . . . . . 2 39 . . Kinetic 1009 | . 90 26 104 216 8 94 113 334 24 Thermal 67 | . . . . . . 18 49 . . Explosive 4 | . . . . 4 . . . . . Electromagnetic . | . . . . . . . . . . Robot Hit Streak 21 | . 7 8 21 9 4 9 11 19 10 Robot Miss Streak 6 | . 5 1 3 5 2 3 6 5 1 Penetration Max . | . . . . . . . . . . Secondary Targets 7 | . 1 . . . . . 2 4 . Max Gunslinging Chain 1 | . 1 . . . . . 1 1 . Shots Hit Robots 694 | . 48 22 62 138 4 87 89 223 21 Core Hits 266 | . 24 10 23 65 2 32 30 78 2 Critical Kills 2 | . 1 . . . . . 1 . . Critical Parts Destroyed . | . . . . . . . . . . Critical Strikes 16 | . 1 . 3 4 . 5 2 . 1 Burn 1 | . . . . . . 1 . . . Destroy 3 | . 1 . . . . . 1 . 1 Blast 11 | . . . 3 4 . 4 . . . Impale 1 | . . . . . . . 1 . . Melee Attacks 58 | . . . . 12 . 33 12 1 . Impact . | . . . . . . . . . . Slashing 40 | . . . . 12 . 28 . . . Piercing 15 | . . . . . . 4 10 1 . Sneak Attacks 18 | . . . . 4 . 5 9 . . Combat Hostiles . | . . . . . . . . . . Follow-up Attacks . | . . . . . . . . . . Damage Inflicted 13608 | . 596 182 1253 3414 85 2313 1648 3750 367 Guns 7257 | . 592 182 831 101 . 310 1130 3744 367 Cannons 3988 | . . . 421 2395 83 1070 19 . . Explosions 417 | . . . . 417 . . . . . Melee 1839 | . . . . 494 . 912 433 . . Ramming 48 | . 4 . 1 7 2 21 7 6 . Kinetic 10829 | . 592 182 1252 2496 83 1070 1043 3744 367 Thermal 475 | . . . . . . 310 165 . . Explosive 417 | . . . . 417 . . . . . Electromagnetic . | . . . . . . . . . . Impact . | . . . . . . . . . . Slashing 1175 | . . . . 494 . 681 . . . Piercing 664 | . . . . . . 231 433 . . Highest Corruption 1 | . . . . . . . . 1 1 Average Corruption 1 | . . . . . . . . 1 1 Corruption Purged 1 | . . . . . . . . . 1 Corruption Blocked . | . . . . . . . . . . Effects 15 | . . . . . . . . 15 . Message Errors 3 | . . . . . . . . 3 . Matter Fused 2 | . . . . . . . . 2 . Heat Flow Errors 4 | . . . . . . . . 4 . Energy Discharges 2 | . . . . . . . . 2 . Data Loss (minor) 1 | . . . . . . . . 1 . Data Loss (major) 1 | . . . . . . . . 1 . Misfires 1 | . . . . . . . . 1 . Alerts 1 | . . . . . . . . 1 . Overload Shots . | . . . . . . . . . . Overflow Damage 189 | . . . 2 111 . 46 30 . . Projectiles 60 | . . . 2 53 . 5 . . . Explosions 38 | . . . . 38 . . . . . Melee 91 | . . . . 20 . 41 30 . . Knockbacks 25 | . . . 6 6 2 11 . . . Impact . | . . . . . . . . . . Kinetic 23 | . . . 6 6 2 9 . . . Secondary 2 | . . . . . . 2 . . . Self-Inflicted Damage 65 | . . . . 65 . . . . . Shots 2 | . . . . 2 . . . . . Rammed 6 | . . . 1 2 . 1 1 1 . Targets Rammed 8 | . 1 . 1 2 1 1 1 1 . Kicked 1 | . 1 . . . . . . . . Crushed 1 | . . . . . 1 . . . . Highest Temperature 456 | . 24 456 . 33 . 279 329 321 234 Average Temperature 63 | . 9 106 . 8 . 60 87 88 92 Received Heat Transfer 2442 | . 144 60 144 280 . 1125 132 521 36 Effects 5 | . . 2 . . . . . 3 . Shutdowns 1 | . . 1 . . . . . . . Energy Bleed 3 | . . 1 . . . . . 2 . Short Circuit 1 | . . . . . . . . 1 . Siege Activations . | . . . . . . . . . . Robots Corrupted . | . . . . . . . . . . Combat Hostiles . | . . . . . . . . . . Parts Fried . | . . . . . . . . . . Impact Corruptions . | . . . . . . . . . . Robots Melted . | . . . . . . . . . . Combat Hostiles . | . . . . . . . . . . Parts Melted 1 | . . . . . . 1 . . . Heat Transferred 1191 | . . . . . . 518 673 . . Parts Sabotaged . | . . . . . . . . . . Parts Stolen . | . . . . . . . . . . Parts Stripped . | . . . . . . . . . . Power Chain Reactions . | . . . . . . . . . . Missiles Intercepted . | . . . . . . . . . . Alert | -11 -10 -10 -10 -9 -9 -8 -8 -7 -7 ------- Run | Jun Mat Min Sub Mat Min Mat Sto Fac Low Peak Influence 604 | . 341 155 . 604 235 94 544 365 . Initial 235 | . . 85 . 175 235 1 4 101 . Average 211 | . 185 77 . 361 67 36 234 146 . Maximum Alert Level 2 | . 1 . . 2 1 . 2 1 . Low Security (%) 47 | 100 45 100 . 7 78 100 36 71 . Level 1 39 | . 54 . . 64 21 . 43 28 . Level 2 12 | . . . . 27 . . 19 . . Level 3 . | . . . . . . . . . . Level 4 . | . . . . . . . . . . Level 5 . | . . . . . . . . . . High Security . | . . . . . . . . . . Max Security . | . . . . . . . . . . Squads Dispatched 20 | . 3 . . 6 . 2 2 7 . Investigation 11 | . 3 . . 6 . . . 2 . Extermination 2 | . . . . . . . . 2 . Reinforcement 7 | . . . . . . 2 2 3 . Assault . | . . . . . . . . . . Garrison . | . . . . . . . . . . Intercept . | . . . . . . . . . . Searches Triggered . | . . . . . . . . . . Construction Impeded . | . . . . . . . . . . Haulers Reinforced . | . . . . . . . . . . Active Scanning Responses . | . . . . . . . . . . Cargo Convoy Interrupts . | . . . . . . . . . . Stealth | -11 -10 -10 -10 -9 -9 -8 -8 -7 -7 --------- Run | Jun Mat Min Sub Mat Min Mat Sto Fac Low Distress Signals 10 | . 2 . . 5 . 1 2 . . Communications Jammed . | . . . . . . . . . . Distress Signals . | . . . . . . . . . . Times Spotted 210 | . 21 6 28 63 7 17 30 37 1 Peak Tracking Total 6 | . 5 2 6 5 3 4 5 4 1 Tactical Retreats 18 | . 1 2 2 5 . 2 2 4 . Traps | -11 -10 -10 -10 -9 -9 -8 -8 -7 -7 ------- Run | Jun Mat Min Sub Mat Min Mat Sto Fac Low Traps Triggered 8 | . 1 . 1 2 . . . 4 . Indirectly . | . . . . . . . . . . Trap Hack Attempts 20 | . . . . . . . 20 . . Triggered . | . . . . . . . . . . Disarmed . | . . . . . . . . . . Reprogrammed 6 | . . . . . . . 6 . . Reused 1 | . . . 1 . . . . . . Traps Extracted . | . . . . . . . . . . Installed 1 | . . . 1 . . . . . . Triggered . | . . . . . . . . . . Most Traps Carried 3 | . . 3 3 . . . . . . Machines | -11 -10 -10 -10 -9 -9 -8 -8 -7 -7 ---------- Run | Jun Mat Min Sub Mat Min Mat Sto Fac Low Machines Disabled 8 | . 1 . 1 . . 1 5 . . Max in Single Turn 1 | . 1 . 1 . . 1 1 . . Garrison Access 2 | . . . . . . . . 2 . Machines Repaired . | . . . . . . . . . . Machines Sabotaged . | . . . . . . . . . . Overloaded Fab Kills . | . . . . . . . . . . Hacking | -11 -10 -10 -10 -9 -9 -8 -8 -7 -7 --------- Run | Jun Mat Min Sub Mat Min Mat Sto Fac Low Machines Accessed 39 | . 6 . 2 14 . 3 6 8 . Terminals 24 | . 5 . . 9 . 3 5 2 . Fabricators 2 | . . . . . . . . 2 . Repair Stations 4 | . . . . 2 . . . 2 . Recycling Units 4 | . 1 . . 2 . . 1 . . Scanalyzers 1 | . . . . 1 . . . . . Garrison Access 2 | . . . . . . . . 2 . Total Hacks 114 | . 20 . 3 46 . 8 19 18 . Successful 50 | . 8 . 3 20 . 3 7 9 . Failed 63 | . 12 . . 25 . 5 12 9 . Catastrophic 12 | . 4 . . 3 . 2 1 2 . Database Lockouts 1 | . . . . 1 . . . . . Manual 71 | . 20 . . 26 . 7 16 2 . Terminals 72 | . 18 . . 28 . 8 15 3 . Fabricators 7 | . . . . . . . . 7 . Repair Stations 16 | . . . . 11 . . . 5 . Recycling Units 8 | . 2 . . 2 . . 4 . . Scanalyzers 5 | . . . . 5 . . . . . Garrison Access 3 | . . . . . . . . 3 . Terminal Hacks 20 | . 3 . 3 7 . 2 3 2 . Record 2 | . . . 2 . . . . . . Part Schematic 1 | . . . . 1 . . . . . Robot Schematic 2 | . . . . 2 . . . . . Robot Analysis 4 | . 3 . . 1 . . . . . Branch Access Points 1 | . . . . . . . . 1 . Terminal Index 1 | . . . . . . . 1 . . Alert Level 2 | . . . . . . 1 . 1 . Unreport Threat 4 | . . . . 2 . 1 1 . . Locate Traps 1 | . . . . . . . 1 . . Zone Layout 1 | . . . . 1 . . . . . Derelict Proto ID Bank 1 | . . . 1 . . . . . . Fabricator Hacks 2 | . . . . . . . . 2 . Network Status 1 | . . . . . . . . 1 . Load Schematic 1 | . . . . . . . . 1 . Repair Station Hacks 9 | . . . . 7 . . . 2 . Scan Component 5 | . . . . 4 . . . 1 . Repair 4 | . . . . 3 . . . 1 . Recycling Unit Hacks . | . . . . . . . . . . Scanalyzer 2 | . . . . 2 . . . . . Insert Component 1 | . . . . 1 . . . . . Analyze 1 | . . . . 1 . . . . . Garrison Access Hacks 2 | . . . . . . . . 2 . Seal Access 2 | . . . . . . . . 2 . Unauthorized Hacks 15 | . 5 . . 4 . 1 4 1 . Terminals 9 | . 4 . . 2 . 1 2 . . Track 2 | . . . . 1 . . 1 . . Botnet 7 | . 4 . . 1 . 1 1 . . Fabricators 1 | . . . . . . . . 1 . Haulers 1 | . . . . . . . . 1 . Repair Stations . | . . . . . . . . . . Recycling Units 5 | . 1 . . 2 . . 2 . . Reject 1 | . . . . . . . 1 . . Mask 1 | . . . . . . . 1 . . Tunnel 3 | . 1 . . 2 . . . . . Scanalyzers . | . . . . . . . . . . Garrison Access . | . . . . . . . . . . Data Cores Recovered 2 | . . . . . . . 2 . . Used . | . . . . . . . . . . Hacking Detections 33 | . 6 . . 12 . 3 6 6 . Full Trace Events 8 | . 2 . . 3 . 1 . 2 . Feedback Events . | . . . . . . . . . . Feedback Blocked . | . . . . . . . . . . Robot Schematics Acquired 2 | . . . . 2 . . . . . Robots Built . | . . . . . . . . . . Authchips . | . . . . . . . . . . Time . | . . . . . . . . . . Total Robot Build Rating . | . . . . . . . . . . Part Schematics Acquired 1 | . . . . 1 . . . . . Parts Built . | . . . . . . . . . . Authchips . | . . . . . . . . . . Time . | . . . . . . . . . . Total Part Build Rating . | . . . . . . . . . . Parts Repaired 4 | . . . . 3 . . . 1 . Time 280 | . . . . 172 . . . 108 . Parts Recycled . | . . . . . . . . . . Recycled Matter . | . . . . . . . . . . Retrieved Matter . | . . . . . . . . . . Retrieved Components . | . . . . . . . . . . Parts Scanalyzed 1 | . . . . 1 . . . . . Part Schematics Acquired . | . . . . . . . . . . Parts Damaged . | . . . . . . . . . . Bothacking | -11 -10 -10 -10 -9 -9 -8 -8 -7 -7 ------------ Run | Jun Mat Min Sub Mat Min Mat Sto Fac Low Used RIF Installer . | . . . . . . . . . . Robots Hacked 2 | . . . . . . 1 1 . . Non-combat . | . . . . . . . . . . Combat 2 | . . . . . . 1 1 . . Robot Hacks Applied 2 | . . . . . . 1 1 . . parse_system 2 | . . . . . . 1 1 . . Relay Couplers Released . | . . . . . . . . . . Fabnet Peak Effective % . | . . . . . . . . . . Robots Rewired . | . . . . . . . . . . Allies Hacked . | . . . . . . . . . . Hacks Repelled . | . . . . . . . . . . Allies | -11 -10 -10 -10 -9 -9 -8 -8 -7 -7 -------- Run | Jun Mat Min Sub Mat Min Mat Sto Fac Low Total Allies 6 | . . . . . 3 . 3 . . Largest Group 3 | . . . . . 3 3 2 . . Highest-Rated Group 115 | . . . . . 40 40 115 . . Highest-Rated Ally 100 | . . . . . 16 16 100 . . Total Orders . | . . . . . . . . . . Ally Attacks 69 | . . . . . . 6 63 . . Total Damage 2018 | . . . . . . 75 1943 . . Kills 21 | . . . . . . 1 20 . . Allies Corrupted . | . . . . . . . . . . Allies Melted . | . . . . . . . . . . Intel | -11 -10 -10 -10 -9 -9 -8 -8 -7 -7 ------- Run | Jun Mat Min Sub Mat Min Mat Sto Fac Low Robot Analysis Total 4 | . 3 . . 1 . . . . . Derelict Logs Recovered 3 | . . . 2 . 1 . . . . Drone Launches . | . . . . . . . . . . Drone Recoveries . | . . . . . . . . . . Exploration | -11 -10 -10 -10 -9 -9 -8 -8 -7 -7 ------------- Run | Jun Mat Min Sub Mat Min Mat Sto Fac Low Turns Passed 23177 | 3 754 583 7512 5103 1901 1526 2743 2942 110 Spaces Moved 8802 | 1 346 325 3635 1246 586 533 1027 1067 36 Core 202 | . . . 202 . . . . . . Treads 8373 | . 249 325 3433 1246 586 404 1027 1067 36 Legs 98 | 1 97 . . . . . . . . Wheels 129 | . . . . . . 129 . . . Hover . | . . . . . . . . . . Flight . | . . . . . . . . . . Fastest Speed 120 | 120 120 160 160 260 320 215 232 240 240 Average Speed 230 | 120 159 160 194 316 320 226 238 240 240 Slowest Speed 460 | 120 190 160 450 460 320 240 240 240 240 Overloaded Moves . | . . . . . . . . . . Propulsion Burnouts . | . . . . . . . . . . Robots Hopped . | . . . . . . . . . . Cave-ins Triggered . | . . . . . . . . . . Exploration Rate (%) 54 | 2 64 44 97 84 99 26 92 29 12 Regions Visited 9 Branch Regions 5 Pre-discovered Areas 4 | . 1 1 . 2 . . . . . Known Exits Taken 3 | . . . . . 1 1 . 1 . Unknown Exits Taken 6 | 1 1 1 1 1 . . 1 . . Scrap Searched 6 | . . . 4 . 2 . . . . Spaces Dug 19 | . . . . 18 . . . 1 . Terrain Destroyed 39 | . . . 1 27 . 7 3 1 . Melee 1 | . . . . . . . . 1 . Projectile 12 | . . . 1 1 . 7 3 . . AOE 26 | . . . . 26 . . . . . Terrain Rammed . | . . . . . . . . . . Walls Destroyed . | . . . . . . . . . . Machines Disabled . | . . . . . . . . . . Actions | -11 -10 -10 -10 -9 -9 -8 -8 -7 -7 --------- Run | Jun Mat Min Sub Mat Min Mat Sto Fac Low Total 10921 | 4 458 368 3996 2175 604 703 1234 1330 49 Wait 1084 | . 44 19 210 696 12 17 21 65 . Move 8793 | . 345 324 3634 1245 585 532 1026 1066 36 Hop . | . . . . . . . . . . Pick Up 130 | . 10 5 29 31 1 20 17 17 . Fast Attach 56 | . 5 2 11 11 . 5 10 12 . Attach 36 | . 1 1 5 4 . 14 1 9 1 Detach 14 | . 3 . 3 1 . 1 3 3 . Swap 79 | . 2 . 5 16 . 11 21 20 4 Drop 137 | 4 2 4 27 37 1 11 28 23 . Fire 485 | . 45 13 60 112 4 58 74 111 8 Melee 58 | . . . . 12 . 33 12 1 . Ram . | . . . . . . . . . . Kick 1 | . 1 . . . . . . . . Crush 7 | . . . 1 2 1 1 1 1 . Escape Stasis 2 | . . . . . . . . 2 . Rewire . | . . . . . . . . . . Trap 21 | . . . 1 . . . 20 . . Miscellaneous 18 | . . . 10 8 . . . . . Route ------- -11/Junkyard -10/Materials (discovered 4 exits: *Mat x2 / [*Min x2]) -10/Mines (discovered 2 exits: *Mat / *Sub) -10/Subcaves (discovered 3 exits: *Mat / *Mat / [*Rec]) -9/Materials (discovered 3 exits: *Mat x2 / [*Min]) -9/Mines (discovered 2 exits: *Mat x2) -8/Materials -8/Storage -7/Factory (discovered 4 exits: *Fac x2 / *Low x2) -7/Lower Caves History --------- Turn | Location | Event 4 | -11/Junkyard | Discovered new exit (range 0) 4 | -11/Junkyard | Entered Materials 4 | -10/Materials | Discovered new exit (range 14) 242 | -10/Materials | Discovered new exit (range 15) 316 | -10/Materials | Build established: Mutant 407 | -10/Materials | Discovered new exit (range 16) 608 | -10/Materials | Discovered new exit (range 10) 758 | -10/Materials | Entered Mines 774 | -10/Mines | Found a hidden stash of uninstalled traps 959 | -10/Mines | Found a damaged Exp. Sensor Array with a note attached 963 | -10/Mines | Found Prototype Device 963 | -10/Mines | Identified Exp. Sensor Array 986 | -10/Mines | Discovered new exit (range 16) 1323 | -10/Mines | Discovered new exit (range 12) 1341 | -10/Mines | Entered Subcaves 1346 | -10/Subcaves | Learned location of 1 exit from Materials 1393 | -10/Subcaves | Learned Materials terminal intel 1687 | -10/Subcaves | Shifting Twisted Machinery released Sub. Beam Cannon 1805 | -10/Subcaves | Visited 4L-MR0's lab 1829 | -10/Subcaves | Found Gun Armor 1910 | -10/Subcaves | Shifting Twisted Machinery released Mak. Flight Unit 2242 | -10/Subcaves | Discovered new exit (range 9) 2253 | -10/Subcaves | Visited Clippyterm 2258 | -10/Subcaves | Learned Factory garrison access intel 2394 | -10/Subcaves | Core integrity fell below 50% 3939 | -10/Subcaves | Discovered new exit (range 16) 3962 | -10/Subcaves | Core integrity fell below 20% 4038 | -10/Subcaves | Ambushed by Subdwellers from Twisted Machinery 4399 | -10/Subcaves | Shifting Twisted Machinery released Sub. Laser 4420 | -10/Subcaves | Shifting Twisted Machinery released Sub. Optics 4495 | -10/Subcaves | Ambushed by Subdwellers from Twisted Machinery 4555 | -10/Subcaves | Discovered new exit (range 15) 4559 | -10/Subcaves | Shifting Twisted Machinery released Battle Cannon 4572 | -10/Subcaves | Shifting Twisted Machinery released Mak. Armor Plating 6627 | -10/Subcaves | Build established: Derelict-Mutant 8096 | -10/Subcaves | Build established: Subdweller-Mutant 8853 | -10/Subcaves | Entered Materials 8853 | -9/Materials | Evolved 2 slots: Utility x2 8854 | -9/Materials | Identified exit to Materials 8855 | -9/Materials | Loaded intel: 11 terminal locations 9321 | -9/Materials | Build established: Mutant 10508 | -9/Materials | Discovered new exit (range 14) 10597 | -9/Materials | Repaired Shield Generator 10706 | -9/Materials | Repaired Faulty Exp. Sensor Array 11076 | -9/Materials | Discovered exit to Materials (range 10) 11179 | -9/Materials | Repaired Shield Generator 12314 | -9/Materials | Build established: Scavenger-Mutant 13495 | -9/Materials | Central database locked down 13956 | -9/Materials | Entered Mines 14202 | -9/Mines | Assembled infested the area 14207 | -9/Mines | Assisted by a Guerilla fighting off Assembled 14252 | -9/Mines | Discovered exit to Materials (range 7) 14332 | -9/Mines | Learned Materials trap positions 14482 | -9/Mines | Discovered exit to Materials (range 10) 15726 | -9/Mines | Assisted by bots powering up and referring to "LRC-V3" 15857 | -9/Mines | Entered Materials 15857 | -8/Materials | Accompanied by 3 allies 15857 | -8/Materials | Evolved 2 slots: Propulsion x2 15858 | -8/Materials | Loaded intel: 13 trap records 15859 | -8/Materials | Discovered new exit (range 8) 15901 | -8/Materials | Identified exit to Storage 16078 | -8/Materials | Met 7R-MNS 16104 | -8/Materials | Attacked by 7R-MNS 16156 | -8/Materials | Lost 7 parts (1p5n1u) 16167 | -8/Materials | 7R-MNS lamented failing the tripod run 16167 | -8/Materials | Destroyed 7R-MNS 16171 | -8/Materials | Found Exp. Focal Shield 16432 | -8/Materials | Build established: Mutant 16903 | -8/Materials | Build established: Scavenger-Mutant 16925 | -8/Materials | Core integrity fell below 50% 17383 | -8/Materials | Entered Storage 17416 | -8/Storage | Met 01-MTF 17850 | -8/Storage | Found Prototype Launcher 17850 | -8/Storage | Identified Scatter Rocket Array 18091 | -8/Storage | Attached Gun Armor, gained temporary slots: Weapon x2 18390 | -8/Storage | Build established: Scavenger-Tank 18655 | -8/Storage | Discovered new exit (range 15) 19358 | -8/Storage | Destroyed 01-MTF 19378 | -8/Storage | Found 01-MTF's Autohacker 20126 | -8/Storage | Entered Factory 20126 | -7/Factory | Evolved 2 slots: Utility x2 20127 | -7/Factory | Loaded intel: 4 garrison access locations 20793 | -7/Factory | Discovered new exit (range 18) 20837 | -7/Factory | Identified exit to Factory 21279 | -7/Factory | Build established: Tank 21421 | -7/Factory | Repaired Centrium Light Armor Plating 21967 | -7/Factory | Discovered exit to Factory (range 15) 22178 | -7/Factory | Identified exit to Lower Caves 23068 | -7/Factory | Entered Lower Caves 23128 | -7/Lower Caves | Spotted B-75 Beast 23178 | -7/Lower Caves | Self-destructed Last Messages --------------- 22692_ Field strength at 10. 22693_ Stasis field depleted. 22789_ G-47 Trooper destroyed. 22795_ Acquired 114 matter. 22804_ K-01 Serf destroyed. 22806_ Acquired 25 matter. 22863_ System corrupted: Energy discharge (-93). 22888_ Connecting with Terminal... >>Alert(Check) Current Alert Level: 1-X 22958_ Dropped Imp. Signal Interpreter. 22958_ Acquired Imp. Salvage Targeting Computer. 23039_ LLQQT&P|DYPAT :RXGAR0